[Event "8th Dolomiti Open 2017"]
[Site "Forni di Sopra"]
[Date "2017.06.13"]
[Round "5.8"]
[White "Carnicelli, Valerio"]
[Black "Qendro, Llambi"]
[Result "1/2-1/2"]
[ECO "B06"]
[WhiteElo "2242"]
[BlackElo "2328"]
[Annotator "ChessBase"]
[PlyCount "33"]
[EventDate "2017.??.??"]
[EventType "swiss"]
[EventCountry "ITA"]
[SourceTitle "playchess.com"]
[Source "ChessBase"]
[SourceQuality "1"]
[TimeControl "40/5400+30:1800+30"]

1. e4 {[%emt 0:00:30]} g6 {[%emt 0:01:00]} 2. d4 {[%emt 0:00:00]} Bg7 {[%emt 0:00:00]} 3. Nc3 {[%emt 0:00:00]} c6 {[%emt 0:00:00]} 4. Be3 {[%emt 0:00:00]} Qb6 {[%emt 0:01:30]} 5. Rb1 {[%emt 0:01:00]} d6 {[%emt 0:00:30]} 6. Qd2 {[%emt 0:00:30]} Nf6 {[%emt 0:02:30]} 7. f3 {[%emt 0:00:30]} Nbd7 {[%emt 0:06:30]} 8. Bc4 {[%emt 0:01:30]} Qc7 {[%emt 0:00:30]} 9. Bb3 {[%emt 0:01:30]} O-O {[%emt 0:06:30]} 10. Nge2 {[%emt 0:02:30]} e5 {[%emt 0:03:30]} 11. O-O {[%emt 0:00:30]} Re8 {[%emt 0:01:30]} 12. Rbd1 {[%emt 0:00:30]} Nf8 {[%emt 0:03:30]} 13. Ng3 {[%emt 0:07:30]} b6 {[%emt 0:08:30]} 14. d5 {[%emt 0:04:30]} c5 {[%emt 0:02:30]} 15. Bc4 {[%emt 0:10:30]} a6 {[%emt 0:01:30]} 16. a4 {[%emt 0:00:00]} Bd7 {[%emt 0:00:30]} 17. b3 {[%emt 0:10:00]} 1/2-1/2

[Event "8th Dolomiti Open 2017"]
[Site "Forni di Sopra"]
[Date "2017.06.13"]
[Round "5.10"]
[White "Barp, Alberto"]
[Black "Remille, Tristan"]
[Result "1-0"]
[ECO "D93"]
[WhiteElo "2233"]
[BlackElo "2309"]
[Annotator "ChessBase"]
[PlyCount "89"]
[EventDate "2017.??.??"]
[EventType "swiss"]
[EventCountry "ITA"]
[SourceTitle "playchess.com"]
[Source "ChessBase"]
[SourceQuality "1"]
[TimeControl "40/5400+30:1800+30"]

1. d4 {[%emt 0:00:30]} Nf6 {[%emt 0:01:00]} 2. c4 {[%emt 0:00:00]} g6 {[%emt 0:00:00]} 3. Nc3 {[%emt 0:00:00]} d5 {[%emt 0:00:00]} 4. Nf3 {[%emt 0:00:00]} Bg7 {[%emt 0:00:30]} 5. Bf4 {[%emt 0:00:00]} O-O {[%emt 0:00:00]} 6. e3 {[%emt 0:00:00]} c5 {[%emt 0:00:00]} 7. dxc5 {[%emt 0:00:00]} Qa5 {[%emt 0:00:30]} 8. Rc1 {[%emt 0:00:30]} dxc4 {[%emt 0:00:30]} 9. Bxc4 {[%emt 0:00:00]} Qxc5 {[%emt 0:00:00]} 10. Bb3 {[%emt 0:00:00]} Bg4 {[%emt 0:00:00]} 11. h3 {[%emt 0:11:30]} Qh5 {[%emt 0:00:30]} 12. O-O {[%emt 0:02:30]} Bxf3 {[%emt 0:00:00]} 13. Qxf3 {[%emt 0:00:30]} Qxf3 {[%emt 0:00:00]} 14. gxf3 {[%emt 0:00:00]} Nc6 {[%emt 0:00:30]} 15. Rfd1 {[%emt 0:13:00]} Rfd8 {[%emt 0:02:30]} 16. Ba4 {[%emt 0:04:30]} Nb4 {[%emt 0:04:30]} 17. Rxd8+ {[%emt 0:02:30]} Rxd8 {[%emt 0:00:30]} 18. a3 {[%emt 0:00:30]} Na6 {[%emt 0:02:30]} 19. e4 {[%emt 0:14:30]} Nh5 {[%emt 0:17:30]} 20. Be3 {[%emt 0:02:30]} Bd4 {[%emt 0:01:30]} 21. Rd1 {[%emt 0:02:30]} e5 {[%emt 0:02:30]} 22. Nd5 {[%emt 0:10:30]} Nc5 {[%emt 0:07:30]} 23. Bxd4 {[%emt 0:01:30]} exd4 {[%emt 0:00:30]} 24. Rxd4 {[%emt 0:00:30]} Kg7 {[%emt 0:00:30]} 25. Rc4 {[%emt 0:01:30]} b6 {[%emt 0:06:30]} 26. h4 {[%emt 0:05:30]} Nf6 {[%emt 0:05:30]} 27. Bc6 {[%emt 0:03:30]} Nd3 {[%emt 0:02:30]} 28. Rc3 {[%emt 0:07:16]} Nxb2 {[%emt 0:04:30]} 29. Kf1 {[%emt 0:01:11]} Nxd5 {[%emt 0:00:30]} 30. Bxd5 {[%emt 0:04:13]} Rd7 {[%emt 0:00:30]} 31. Ke2 {[%emt 0:04:21]} b5 {[%emt 0:19:30]} 32. Rb3 {[%emt 0:04:24]} Na4 {[%emt 0:00:30]} 33. Bc6 {[%emt 0:01:35]} Rc7 {[%emt 0:01:30]} 34. Bxb5 {[%emt 0:00:35]} Nc3+ {[%emt 0:00:30]} 35. Kd2 {[%emt 0:00:24]} Nxb5 {[%emt 0:09:00]} 36. Rxb5 {[%emt 0:00:06]} Rc6 {[%emt 0:01:17]} 37. Ra5 {[%emt 0:00:42]} a6 {[%emt 0:00:06]} 38. Kd3 {[%emt 0:00:02]} Kf6 {[%emt 0:00:51]} 39. f4 {[%emt 0:00:33]} Ke7 {[%emt 0:04:15]} 40. f5 {[%emt 0:00:00]} gxf5 {[%emt 0:01:31]} 41. Rxf5 {[%emt 0:01:38]} Rc1 {[%emt 0:00:30]} 42. Ra5 {[%emt 0:00:30]} Rh1 {[%emt 0:01:30]} 43. h5 {[%emt 0:00:30]} f5 {[%emt 0:00:00]} 44. Rxf5 {[%emt 0:01:30]} Rh3+ {[%emt 0:00:00]} 45. f3 {[%emt 0:00:00]} 1-0

[Event "8th Dolomiti Open 2017"]
[Site "Forni di Sopra"]
[Date "2017.06.13"]
[Round "5.11"]
[White "Stelzer, Harald"]
[Black "Denoyelle, Arnaud"]
[Result "0-1"]
[ECO "B32"]
[WhiteElo "2272"]
[BlackElo "2188"]
[Annotator "RC"]
[PlyCount "52"]
[EventDate "2017.??.??"]
[EventType "swiss"]
[EventCountry "ITA"]
[SourceTitle "playchess.com"]
[Source "ChessBase"]
[SourceQuality "1"]
[TimeControl "40/5400+30:1800+30"]

1. e4 {[%emt 0:04:30]} c5 {[%emt 0:01:00]} 2. Nf3 {[%emt 0:00:30]} Nc6 {[%emt 0:00:00]} 3. d4 {[%emt 0:00:00]} cxd4 {[%emt 0:00:00]} 4. Nxd4 {[%emt 0:00:00]} d5 {[%emt 0:00:00]} 5. Nxc6 {[%emt 0:09:30]} bxc6 {[%emt 0:00:00]} 6. exd5 {[%emt 0:00:30]} Qxd5 {[%emt 0:00:30]} 7. Qxd5 {[%emt 0:08:30]} cxd5 {[%emt 0:00:30]} 8. Nc3 {[%emt 0:01:30]} e6 {[%emt 0:00:00]} 9. Bb5+ {[%emt 0:00:30]} Bd7 {[%emt 0:00:00]} 10. Bxd7+ {[%emt 0:00:30]} Kxd7 {[%emt 0:00:30]} 11. O-O {[%emt 0:00:30]} Be7 {[%emt 0:05:30]} 12. Bf4 {[%emt 0:02:30]} Bf6 {[%emt 0:01:30]} 13. Ne2 {[%emt 0:08:30]} Ne7 {[%emt 0:03:30]} 14. c3 {[%emt 0:05:30]} a5 {[%emt 0:01:30]} 15. b3 {[%emt 0:00:00]} Rhc8 {[%emt 0:02:30]} 16. Rfc1 {[%emt 0:06:00]} a4 {[%emt 0:01:30]} 17. Bd2 {[%emt 0:01:30]} Nf5 {[%emt 0:01:30]} 18. Kf1 {[%emt 0:03:30]} Nd6 {[%emt 0:02:30]} 19. f3 {[%emt 0:10:30]} Nb5 {[%emt 0:01:30]} 20. Rab1 {[%emt 0:01:30]} axb3 {[%emt 0:02:30]} 21. axb3 {[%emt 0:03:30]} Ra2 {[%emt 0:01:30]} 22. Ke1 {[%emt 0:01:30]} Na3 {[%emt 0:00:30]} 23. b4 {[%emt 0:03:30]} Nxb1 {[%emt 0:02:30]} 24. Rxb1 {[%emt 0:00:00]} Rca8 {[%emt 0:00:30]} 25. Nc1 {[%emt 0:01:00]} Ra1 {[%emt 0:05:30]} 26. Rb2 {[%emt 0:00:00]} Rxc1+ {[%emt 0:01:30]} 0-1

[Event "8th Dolomiti Open 2017"]
[Site "Forni di Sopra"]
[Date "2017.06.13"]
[Round "5.12"]
[White "Belli, Giorgio"]
[Black "Loiacono, Leonardo"]
[Result "1/2-1/2"]
[ECO "C91"]
[WhiteElo "2303"]
[BlackElo "2175"]
[Annotator "NA RC"]
[PlyCount "40"]
[EventDate "2017.??.??"]
[EventType "swiss"]
[EventCountry "ITA"]
[SourceTitle "playchess.com"]
[Source "ChessBase"]
[SourceQuality "1"]
[TimeControl "40/5400+30:1800+30"]

{[%evp 8,40,20,21,37,27,32767,32767,32767,32767,42,24,8,6,0,5,16,15,29,-17,-18,-25,0,-25,13,0,-12,0,23,-35,-23,-31,0,0,0]} 1. e4 {[%emt 0:00:30]} e5 {[%emt 0:01:00]} 2. Nf3 {[%emt 0:00:30]} Nc6 {[%emt 0:00:00]} 3. Bb5 {[%emt 0:01:30]} a6 {[%emt 0:00:00]} 4. Ba4 {[%emt 0:00:30]} Nf6 {[%emt 0:00:30]} 5. O-O {[%emt 0:00:30] O-O [%clk 1:29:0]} b5 {[%emt 0:00:00]} 6. Bb3 {[%emt 0:00:00]} Be7 {[%emt 0:00:00]} 7. Re1 {[%emt 0:00:00]} d6 {[%emt 0:00:00]} 8. c3 {[%emt 0:01:30]} O-O {[%emt 0:01:00]} 9. d4 {[%emt 0:04:30]} Bg4 {[%emt 0:07:30]} 10. d5 {[%emt 0:01:30]} Na5 {[%emt 0:01:30]} 11. Bc2 {[%emt 0:00:30] Bc2 [%clk 1:24:0]} c6 {[%emt 0:00:30] LiveBook: 815 Games} 12. h3 {[%emt 0:00:30]} Bh5 {[%emt 0:02:30] ] Bh5 [%clk 1:22:0]} 13. g4 {[%emt 0:04:30] C91: Closed Ruy Lopez: 7...d6 8 c3 0-0 9 d4} (13. dxc6 Nxc6 14. Nbd2 d5 15. exd5 Qxd5 16. Ne4 Qxd1 17. Rxd1 Rad8 18. Be3 {½-½ (18) Delorme,A (2507)-Demuth,A (2537) Sitges 2015}) 13... Bg6 {[%emt 0:01:30]} 14. dxc6 {[%emt 0:01:30]} Qc7 {[%emt 0:10:30]} 15. Nbd2 {[%emt 0:03:30] Q} Qxc6 {[%emt 0:00:30]} 16. Qe2 $146 {[%emt 0:09:30]} ({Predecessor:} 16. Nh4 Nd7 17. Ndf3 Rfe8 18. Nxg6 hxg6 19. g5 Nc4 20. h4 Nc5 21. Nd2 Ne6 22. Nxc4 bxc4 {0-1 (38) Boudy Bueno,J-Alvarez del Monte,J Santa Clara 1968}) 16... Rfe8 {[%emt 0:12:30]} 17. Nf1 {[%emt 0:03:30] B} Bf8 {[%emt 0:02:30]} 18. Ng3 {[%emt 0:04:30]} d5 {[%emt 0:05:30]} 19. exd5 {[%emt 0:05:30]} Qxd5 {[%emt 0:00:30]} 20. Nf5 {[%emt 0:00:30]} e4 $11 {[%emt 0:21:30]} 1/2-1/2

[Event "8th Dolomiti Open 2017"]
[Site "Forni di Sopra"]
[Date "2017.06.14"]
[Round "6.5"]
[White "Denoyelle, Arnaud"]
[Black "Henderson de La Fuente, Lance"]
[Result "1-0"]
[ECO "B40"]
[WhiteElo "2188"]
[BlackElo "2365"]
[Annotator "ChessBase"]
[PlyCount "77"]
[EventDate "2017.??.??"]
[EventType "swiss"]
[EventCountry "ITA"]
[SourceTitle "playchess.com"]
[Source "ChessBase"]
[SourceQuality "1"]
[TimeControl "40/5400+30:1800+30"]

1. e4 {[%emt 0:00:30]} c5 {[%emt 0:01:00]} 2. Nf3 {[%emt 0:00:00]} e6 {[%emt 0:00:00]} 3. c4 {[%emt 0:01:00]} Nc6 {[%emt 0:00:00]} 4. Nc3 {[%emt 0:00:30]} Nge7 {[%emt 0:04:30]} 5. Be2 {[%emt 0:05:30]} Nd4 {[%emt 0:02:30]} 6. Nxd4 {[%emt 0:02:30]} cxd4 {[%emt 0:00:00]} 7. Nb5 {[%emt 0:01:30]} Nc6 {[%emt 0:01:00]} 8. O-O {[%emt 0:00:30]} Be7 {[%emt 0:02:30]} 9. d3 {[%emt 0:00:30]} O-O {[%emt 0:02:30]} 10. Na3 {[%emt 0:07:30]} b6 {[%emt 0:13:30]} 11. Nc2 {[%emt 0:04:30]} Bb7 {[%emt 0:01:30]} 12. f4 {[%emt 0:05:30]} d5 {[%emt 0:19:30]} 13. cxd5 {[%emt 0:02:30]} exd5 {[%emt 0:00:00]} 14. e5 {[%emt 0:02:30]} f6 {[%emt 0:01:00]} 15. e6 {[%emt 0:03:30]} f5 {[%emt 0:01:30]} 16. g4 {[%emt 0:02:30]} g6 {[%emt 0:08:30]} 17. gxf5 {[%emt 0:01:30]} gxf5 {[%emt 0:00:30]} 18. Bh5 {[%emt 0:01:30]} Qd6 {[%emt 0:12:30]} 19. Bf7+ {[%emt 0:00:30]} Rxf7 {[%emt 0:00:30]} 20. exf7+ {[%emt 0:00:30]} Kxf7 {[%emt 0:00:30]} 21. Kh1 {[%emt 0:02:30]} Rg8 {[%emt 0:00:30]} 22. Bd2 {[%emt 0:00:30]} Ba6 {[%emt 0:03:30]} 23. Qf3 {[%emt 0:00:30]} Rg6 {[%emt 0:00:30]} 24. b4 {[%emt 0:10:30]} Bf6 {[%emt 0:02:30]} 25. Rab1 {[%emt 0:06:30]} Nd8 {[%emt 0:01:30]} 26. Qh3 {[%emt 0:02:30]} Kg7 {[%emt 0:01:30]} 27. b5 {[%emt 0:07:30]} Bc8 {[%emt 0:00:30]} 28. Nb4 {[%emt 0:06:30]} Nb7 {[%emt 0:02:12]} 29. Rbc1 {[%emt 0:04:14]} Nc5 {[%emt 0:00:12]} 30. Nc6 {[%emt 0:01:27]} a6 {[%emt 0:04:53]} 31. Rg1 {[%emt 0:07:03]} Rg4 {[%emt 0:06:40]} 32. Qf3 {[%emt 0:03:28]} axb5 {[%emt 0:03:36]} 33. h3 {[%emt 0:00:12]} Rg6 {[%emt 0:01:48]} 34. Ne5 {[%emt 0:00:09]} Bxe5 {[%emt 0:00:14]} 35. fxe5 {[%emt 0:00:12]} Qxe5 {[%emt 0:00:39]} 36. Bf4 {[%emt 0:00:39]} Qe8 {[%emt 0:02:39]} 37. Rce1 {[%emt 0:01:49]} Be6 {[%emt 0:01:20]} 38. Be5+ {[%emt 0:01:23]} Kg8 {[%emt 0:00:23]} 39. Bxd4 1-0

[Event "8th Dolomiti Open 2017"]
[Site "Forni di Sopra"]
[Date "2017.06.14"]
[Round "6.8"]
[White "Kiefer, Gerhard"]
[Black "Naumkin, Igor"]
[Result "1/2-1/2"]
[ECO "C86"]
[WhiteElo "2259"]
[BlackElo "2401"]
[Annotator "ChessBase"]
[PlyCount "60"]
[EventDate "2017.??.??"]
[EventType "swiss"]
[EventCountry "ITA"]
[SourceTitle "playchess.com"]
[Source "ChessBase"]
[SourceQuality "1"]
[TimeControl "40/5400+30:1800+30"]

1. e4 {[%emt 0:00:30]} e5 {[%emt 0:02:00]} 2. Nf3 {[%emt 0:00:30]} Nc6 {[%emt 0:00:30]} 3. Bb5 {[%emt 0:00:30]} a6 {[%emt 0:00:00]} 4. Ba4 {[%emt 0:00:00]} Nf6 {[%emt 0:00:00]} 5. Qe2 {[%emt 0:00:00]} b5 {[%emt 0:00:30]} 6. Bb3 {[%emt 0:00:30]} Be7 {[%emt 0:00:30]} 7. c3 {[%emt 0:00:00]} O-O {[%emt 0:00:30]} 8. O-O {[%emt 0:00:00]} d6 {[%emt 0:00:30]} 9. Rd1 {[%emt 0:00:30]} h6 {[%emt 0:04:30]} 10. h3 {[%emt 0:09:30]} Re8 {[%emt 0:05:30]} 11. a4 {[%emt 0:11:30]} b4 {[%emt 0:10:30]} 12. a5 {[%emt 0:00:30]} Bf8 {[%emt 0:03:30]} 13. d3 {[%emt 0:06:30]} Rb8 {[%emt 0:08:30]} 14. Nbd2 {[%emt 0:03:30]} Ne7 {[%emt 0:07:30]} 15. d4 {[%emt 0:10:30]} Ng6 {[%emt 0:02:30]} 16. d5 {[%emt 0:07:30]} Nf4 {[%emt 0:05:30]} 17. Qe3 {[%emt 0:00:30]} bxc3 {[%emt 0:01:30]} 18. bxc3 {[%emt 0:00:30]} Bxh3 {[%emt 0:10:30]} 19. gxh3 {[%emt 0:02:30]} Nxh3+ {[%emt 0:01:30]} 20. Kf1 {[%emt 0:04:30]} Ng4 {[%emt 0:00:30]} 21. Qe2 {[%emt 0:00:30]} Nf4 {[%emt 0:07:30]} 22. Qxa6 {[%emt 0:00:30]} Qf6 {[%emt 0:01:30]} 23. Qc4 {[%emt 0:00:30]} Qg6 {[%emt 0:01:30]} 24. Ba4 {[%emt 0:05:30]} Qh5 {[%emt 0:15:06]} 25. Ke1 {[%emt 0:00:30]} Ng2+ {[%emt 0:01:48]} 26. Ke2 {[%emt 0:00:30]} Nf4+ {[%emt 0:00:59]} 27. Ke1 {[%emt 0:00:00]} Qh1+ {[%emt 0:02:50]} 28. Qf1 {[%emt 0:00:00]} Ng2+ {[%emt 0:00:34]} 29. Ke2 {[%emt 0:00:30]} Nf4+ {[%emt 0:00:45]} 30. Ke1 {[%emt 0:00:00]} Ng2+ {[%emt 0:00:31]} 1/2-1/2

[Event "8th Dolomiti Open 2017"]
[Site "Forni di Sopra"]
[Date "2017.06.14"]
[Round "6.10"]
[White "Derakhshani, Dorsa"]
[Black "Sgircea, Silvia-Raluca"]
[Result "1/2-1/2"]
[ECO "B38"]
[WhiteElo "2321"]
[BlackElo "2208"]
[Annotator "ChessBase"]
[PlyCount "54"]
[EventDate "2017.??.??"]
[EventType "swiss"]
[EventCountry "ITA"]
[SourceTitle "playchess.com"]
[Source "ChessBase"]
[SourceQuality "1"]
[TimeControl "40/5400+30:1800+30"]

1. e4 {[%emt 0:04:30]} c5 {[%emt 0:01:00]} 2. Nf3 {[%emt 0:00:30]} Nc6 {[%emt 0:00:00]} 3. d4 {[%emt 0:00:00]} cxd4 {[%emt 0:00:00]} 4. Nxd4 {[%emt 0:00:00]} g6 {[%emt 0:00:00]} 5. c4 {[%emt 0:00:30]} Bg7 {[%emt 0:00:00]} 6. Be3 {[%emt 0:00:00]} Nf6 {[%emt 0:00:30]} 7. Nc3 {[%emt 0:00:00]} d6 {[%emt 0:00:30]} 8. Be2 {[%emt 0:00:00]} O-O {[%emt 0:00:00]} 9. O-O {[%emt 0:01:00]} Bd7 {[%emt 0:00:00]} 10. Qd2 {[%emt 0:00:30]} Nxd4 {[%emt 0:00:30]} 11. Bxd4 {[%emt 0:00:30]} Bc6 {[%emt 0:00:30]} 12. f3 {[%emt 0:00:00]} a5 {[%emt 0:00:30]} 13. b3 {[%emt 0:01:00]} Nd7 {[%emt 0:00:30]} 14. Be3 {[%emt 0:00:30]} Nc5 {[%emt 0:00:30]} 15. Rab1 {[%emt 0:00:30]} Be5 {[%emt 0:00:30]} 16. g3 {[%emt 0:01:30]} e6 {[%emt 0:03:30]} 17. Rbd1 {[%emt 0:09:30]} Qe7 {[%emt 0:03:30]} 18. Nb5 {[%emt 0:01:30]} Rfd8 {[%emt 0:22:30]} 19. Qc1 {[%emt 0:16:30]} Bxb5 {[%emt 0:23:30]} 20. cxb5 {[%emt 0:00:30]} Rac8 {[%emt 0:01:30]} 21. Bc4 {[%emt 0:07:30]} Bf6 {[%emt 0:17:30]} 22. Bf2 {[%emt 0:21:30]} b6 {[%emt 0:02:30]} 23. Rfe1 {[%emt 0:07:30]} Qb7 {[%emt 0:01:30]} 24. Qf4 {[%emt 0:00:30]} Bc3 {[%emt 0:04:32]} 25. Re3 {[%emt 0:01:30]} Be5 {[%emt 0:00:12]} 26. Qh4 {[%emt 0:01:30]} Bg7 {[%emt 0:01:26]} 27. Re2 {[%emt 0:01:30]} Rd7 {[%emt 0:02:09]} 1/2-1/2

[Event "8th Dolomiti Open 2017"]
[Site "Forni di Sopra"]
[Date "2017.06.14"]
[Round "6.12"]
[White "Herbrechtsmeier, Christof"]
[Black "Vezzosi, Paolo"]
[Result "1/2-1/2"]
[ECO "B49"]
[WhiteElo "2240"]
[BlackElo "2333"]
[Annotator "ChessBase"]
[PlyCount "27"]
[EventDate "2017.??.??"]
[EventType "swiss"]
[EventCountry "ITA"]
[SourceTitle "playchess.com"]
[Source "ChessBase"]
[SourceQuality "1"]
[TimeControl "40/5400+30:1800+30"]

1. e4 {[%emt 0:01:30]} c5 {[%emt 0:01:00]} 2. Nf3 {[%emt 0:00:30]} e6 {[%emt 0:00:00]} 3. d4 {[%emt 0:00:30]} cxd4 {[%emt 0:00:00]} 4. Nxd4 {[%emt 0:00:00]} Nc6 {[%emt 0:00:00]} 5. Nc3 {[%emt 0:00:00]} Qc7 {[%emt 0:00:00]} 6. Be2 {[%emt 0:00:30]} Nf6 {[%emt 0:00:30]} 7. Be3 {[%emt 0:00:30]} a6 {[%emt 0:00:30]} 8. O-O {[%emt 0:00:00]} b5 {[%emt 0:02:30]} 9. Nxc6 {[%emt 0:02:00]} dxc6 {[%emt 0:00:00]} 10. f4 {[%emt 0:01:30]} Bb7 {[%emt 0:07:00]} 11. e5 {[%emt 0:05:30]} Rd8 {[%emt 0:01:30]} 12. Qe1 {[%emt 0:05:30]} Nd5 {[%emt 0:00:30]} 13. Nxd5 {[%emt 0:00:30]} cxd5 {[%emt 0:00:30]} 14. c3 {[%emt 0:00:30]} 1/2-1/2

[Event "8th Dolomiti Open 2017"]
[Site "Forni di Sopra"]
[Date "2017.06.15"]
[Round "7.9"]
[White "Henderson de La Fuente, Lance"]
[Black "De Santis, Alessio"]
[Result "1/2-1/2"]
[ECO "B07"]
[WhiteElo "2365"]
[BlackElo "2242"]
[Annotator "NA"]
[PlyCount "48"]
[EventDate "2017.??.??"]
[EventType "swiss"]
[EventCountry "ITA"]
[SourceTitle "playchess.com"]
[Source "ChessBase"]
[SourceQuality "1"]
[TimeControl "40/5400+30:1800+30"]

{[%evp 8,47,65,45,54,48,32767,30,31,25,21,22,32767,11,49,16,32,32767,32767,39,32767,48,59,44,72,57,57,55,93,119,99,32767,32767,-53,-20,32767,32767,32767,-33,-47,-42,-76]} 1. e4 {[%emt 0:00:30]} d6 {[%emt 0:04:00]} 2. Nc3 {[%emt 0:00:00]} Nf6 {[%emt 0:01:30]} 3. f4 {[%emt 0:01:00]} c6 {[%emt 0:03:30]} 4. d4 {[%emt 0:01:30]} Qa5 {[%emt 0:08:30]} 5. Bd3 {[%emt 0:00:30]} e5 {[%emt 0:02:30]} 6. Nf3 {[%emt 0:03:30]} Bg4 {[%emt 0:00:30]} 7. dxe5 {[%emt 0:05:30]} dxe5 {[%emt 0:00:30]} 8. h3 {[%emt 0:00:30]} Bxf3 $1 {[%emt 0:00:30]} 9. Qxf3 {[%emt 0:00:30] LiveBook: 19 Games} Nbd7 {[%emt 0:01:30]} 10. Bd2 {[%emt 0:10:30] B07: Pirc Defence: Miscellaneous Systems} (10. f5 Nc5 11. Bd2 Qb6 12. O-O-O O-O-O 13. Bc4 Qc7 14. Be3 Rxd1+ 15. Rxd1 b5 16. Bb3 Nxb3+ 17. axb3 Bb4 {0-1 (44) Bilguun,S (2362)-Galmandakh,B (2328) Ulaanbaatar 2015}) 10... Qc7 {[%emt 0:17:30]} 11. g3 {[%emt 0:05:30]} Be7 $146 {[%emt 0:03:30]} ({Predecessor:} 11... Bc5 12. O-O-O O-O-O 13. Bc4 Rhf8 14. Rhe1 b5 15. Bb3 Bd6 16. a3 Nb6 17. Kb1 Kb7 {½-½ (62) Serbanescu,D (2042)-Mossong,H (2039) England 2016}) 12. O-O-O {[%emt 0:06:30]} O-O {[%emt 0:13:30]} 13. f5 {[%emt 0:00:30]} Nc5 {[%emt 0:01:30]} 14. g4 {[%emt 0:01:30]} Nxd3+ {[%emt 0:00:30]} 15. cxd3 {[%emt 0:05:30]} Rfd8 {[%emt 0:19:37]} 16. g5 {[%emt 0:01:30]} Nd7 {[%emt 0:00:04]} 17. f6 {[%emt 0:04:30]} gxf6 {[%emt 0:06:54]} (17... Bb4 $11) 18. gxf6 {[%emt 0:01:30]} Bxf6 {[%emt 0:00:06]} 19. Rdf1 {[%emt 0:09:30]} Kh8 {[%emt 0:00:46]} 20. Qh5 {[%emt 0:00:30]} (20. Ne2 $14) 20... Rg8 {[%emt 0:01:03]} 21. Qxf7 {[%emt 0:01:30]} Raf8 {[%emt 0:00:17]} 22. Qh5 {[%emt 0:00:30]} Nc5 {[%emt 0:02:17]} 23. Qe2 {[%emt 0:07:30]} Qd6 {[%emt 0:00:45]} 24. Rf3 $17 {[%emt 0:05:30]} Ne6 {[%emt 0:03:45]} 1/2-1/2

[Event "8th Dolomiti Open 2017"]
[Site "Forni di Sopra"]
[Date "2017.06.15"]
[Round "7.10"]
[White "Medancic, Rikard"]
[Black "Seresin, Francesco"]
[Result "1/2-1/2"]
[ECO "D95"]
[WhiteElo "2221"]
[BlackElo "2280"]
[Annotator "NA"]
[PlyCount "49"]
[EventDate "2017.??.??"]
[EventType "swiss"]
[EventCountry "ITA"]
[SourceTitle "playchess.com"]
[Source "ChessBase"]
[SourceQuality "1"]
[TimeControl "40/5400+30:1800+30"]

{[%evp 8,49,34,1,32767,32767,32767,32767,32767,32767,32767,32767,32767,32767,20,32767,20,32767,-9,-16,-9,32767,32767,32767,32767,32767,-11,-21,-10,-24,-18,-20,32767,-25,-6,-9,0,32767,32767,-16,-14,-15,-14,-13]} 1. Nf3 {[%emt 0:00:30]} Nf6 {[%emt 0:02:00]} 2. d4 {[%emt 0:00:30]} g6 {[%emt 0:00:30]} 3. c4 {[%emt 0:00:00]} Bg7 {[%emt 0:00:30]} 4. Nc3 {[%emt 0:00:00]} d5 {[%emt 0:00:30]} 5. e3 {[%emt 0:00:30]} O-O {[%emt 0:00:30]} 6. Qb3 {[%emt 0:00:30]} dxc4 {[%emt 0:01:30]} 7. Bxc4 {[%emt 0:00:00]} c5 {[%emt 0:00:30]} 8. dxc5 {[%emt 0:02:00] D95: Grünfeld: 4 Nf3 Bg7 5 e3 0-0 6 Qb3} (8. d5 Nbd7 9. O-O Nb6 10. e4 Nxc4 11. Qxc4 b6 12. e5 Nd7 13. Bf4 Bb7 14. Rad1 a6 15. a4 b5 16. axb5 axb5 17. Nxb5 {0-1 (37) Dreev,A (2668)-Le,Q (2712) Khanty-Mansiysk 2013}) 8... Nbd7 {[%emt 0:00:30]} 9. c6 {[%emt 0:02:30]} bxc6 {[%emt 0:02:30]} 10. O-O {[%emt 0:00:30]} Qc7 {[%emt 0:06:30]} 11. Qa3 $146 {[%emt 0:35:30]} ({Predecessor:} 11. Bd2 Ng4 12. Rfd1 Rb8 13. Qa3 Nde5 14. Nxe5 Bxe5 15. Na4 Bxh2+ {0-1 (26) Ferrantes,G-Zoppetti,G Trieste 1954}) 11... Nb6 {[%emt 0:06:30]} 12. Qa5 {[%emt 0:03:30]} Ne8 {[%emt 0:13:30]} (12... Nfd5 $5 13. Be2 Nxc3 14. bxc3 Rd8 $11) 13. Be2 {[%emt 0:00:30]} Nd5 {[%emt 0:12:30]} 14. Qxc7 {[%emt 0:01:30]} Nexc7 {[%emt 0:00:00]} 15. Nxd5 {[%emt 0:14:30]} cxd5 {[%emt 0:03:00]} 16. Rd1 {[%emt 0:00:30]} Rb8 {[%emt 0:13:30]} 17. Nd4 {[%emt 0:02:30]} Bd7 {[%emt 0:01:30]} 18. f4 {[%emt 0:06:30]} Rfc8 {[%emt 0:06:30]} 19. b3 {[%emt 0:04:30]} Ne6 {[%emt 0:07:32]} 20. Bb2 {[%emt 0:02:30]} Nxd4 {[%emt 0:02:40]} 21. Bxd4 {[%emt 0:00:30]} Bxd4 {[%emt 0:00:56]} 22. Rxd4 {[%emt 0:00:30]} Bb5 {[%emt 0:00:36]} 23. Bxb5 {[%emt 0:06:43]} Rxb5 {[%emt 0:00:14]} 24. Rad1 {[%emt 0:00:05]} e6 {[%emt 0:02:35]} 25. Kf2 $11 {[%emt 0:02:09]} 1/2-1/2